[Event "Turkish Second League 2019"]
[Site "Konya"]
[Date "2019.07.28"]
[Round "9"]
[White "Shanava, Konstantine"]
[Black "Garayev, Kanan"]
[Result "1-0"]
[ECO "B25"]
[WhiteElo "2538"]
[BlackElo "2351"]
[Annotator "ChessBase"]
[PlyCount "141"]
[EventDate "2019.07.22"]
[EventType "team-tourn"]
[EventCountry "TUR"]
[SourceTitle "playchess.com"]
[Source "ChessBase"]
[SourceQuality "1"]
[TimeControl "5400+30"]

1. g3 {[%emt 0:00:30]} g6 {[%emt 0:00:30]} 2. Bg2 {[%emt 0:00:30]} Bg7 {[%emt 0:00:30]} 3. e4 {[%emt 0:00:00]} c5 {[%emt 0:02:30]} 4. d3 {[%emt 0:00:00]} Nc6 {[%emt 0:01:30]} 5. f4 {[%emt 0:00:30]} d6 {[%emt 0:03:30]} 6. Nc3 {[%emt 0:11:30]} e6 {[%emt 0:05:30]} 7. Nf3 {[%emt 0:00:30]} Nge7 {[%emt 0:00:30]} 8. O-O {[%emt 0:00:00]} O-O {[%emt 0:01:30]} 9. Be3 {[%emt 0:00:00]} Nd4 {[%emt 0:01:30]} 10. Bf2 {[%emt 0:00:30]} Nec6 {[%emt 0:05:30]} 11. g4 {[%emt 0:04:30]} f5 {[%emt 0:15:30]} 12. exf5 {[%emt 0:00:30]} exf5 {[%emt 0:06:30]} 13. g5 {[%emt 0:02:30]} Be6 {[%emt 0:03:30]} 14. h4 {[%emt 0:07:30]} Qd7 {[%emt 0:05:30]} 15. Nxd4 {[%emt 0:09:30]} Nxd4 {[%emt 0:01:30]} 16. Nd5 {[%emt 0:00:30]} Qf7 {[%emt 0:04:30]} 17. Ne3 {[%emt 0:17:30]} Rad8 {[%emt 0:08:30]} 18. Re1 {[%emt 0:06:30]} Rfe8 {[%emt 0:05:30]} 19. c3 {[%emt 0:02:30]} Nc6 {[%emt 0:00:00]} 20. Qa4 {[%emt 0:06:30]} d5 {[%emt 0:05:00]} 21. Nc2 {[%emt 0:01:30]} d4 {[%emt 0:00:30]} 22. Bxc6 {[%emt 0:10:38]} bxc6 {[%emt 0:00:30]} 23. c4 {[%emt 0:00:00]} Qc7 {[%emt 0:00:30]} 24. Bg3 {[%emt 0:02:17]} Bf8 {[%emt 0:01:30]} 25. Kg2 {[%emt 0:01:42]} Bf7 {[%emt 0:01:36]} 26. Rxe8 {[%emt 0:01:09]} Rxe8 {[%emt 0:00:05]} 27. Re1 {[%emt 0:00:00]} Bd6 {[%emt 0:06:10]} 28. Kf3 {[%emt 0:00:54]} Rxe1 {[%emt 0:00:46]} 29. Nxe1 {[%emt 0:00:05]} Qe7 {[%emt 0:01:46]} 30. Ng2 {[%emt 0:01:30]} Qb7 {[%emt 0:01:19]} 31. Qc2 {[%emt 0:00:04]} Qe7 {[%emt 0:01:05]} 32. Be1 {[%emt 0:00:52]} Be8 {[%emt 0:00:41]} 33. Qe2 {[%emt 0:04:13]} Qd7 {[%emt 0:01:43]} 34. Ba5 {[%emt 0:00:18]} Bf7 {[%emt 0:00:18]} 35. Ne1 {[%emt 0:00:42]} h6 {[%emt 0:01:52]} 36. Kg3 {[%emt 0:01:04]} hxg5 {[%emt 0:00:53]} 37. hxg5 {[%emt 0:00:03]} Kg7 {[%emt 0:01:24]} 38. Nf3 {[%emt 0:00:07]} Qc8 {[%emt 0:00:07]} 39. Ng1 {[%emt 0:05:21]} Qh8 {[%emt 0:01:11]} 40. Nh3 {[%emt 0:00:09]} Qb8 {[%emt 0:00:43]} 41. b3 {[%emt 0:00:06]} Kg8 {[%emt 0:01:21]} 42. Bd2 {[%emt 0:00:07]} Kg7 {[%emt 0:00:00]} 43. Nf2 {[%emt 0:01:10]} Qd8 {[%emt 0:00:00]} 44. Kg2 {[%emt 0:00:04]} Qh8 {[%emt 0:01:30]} 45. Qf3 {[%emt 0:00:19]} Qe8 {[%emt 0:02:05]} 46. Nd1 {[%emt 0:00:10]} Qd7 {[%emt 0:01:10]} 47. Nb2 {[%emt 0:00:10]} Qe8 {[%emt 0:00:25]} 48. Nd1 {[%emt 0:01:12]} Qd7 {[%emt 0:00:04]} 49. Kf1 {[%emt 0:00:00]} Qe8 {[%emt 0:00:39]} 50. Nf2 {[%emt 0:00:00]} Kg8 {[%emt 0:00:27]} 51. Nh1 {[%emt 0:00:36]} a5 {[%emt 0:01:11]} 52. Ng3 {[%emt 0:01:03]} Qa8 {[%emt 0:00:29]} 53. Qd1 {[%emt 0:00:30]} Qb8 {[%emt 0:00:22]} 54. Ne2 {[%emt 0:00:08]} Qa8 {[%emt 0:00:43]} 55. Kg2 {[%emt 0:00:10]} Kg7 {[%emt 0:00:17]} 56. Ng1 {[%emt 0:01:21]} Qb8 {[%emt 0:00:34]} 57. Kg3 {[%emt 0:00:20]} Qd8 {[%emt 0:01:55]} 58. Nf3 {[%emt 0:00:05]} Qb8 {[%emt 0:00:42]} 59. Qe1 {[%emt 0:00:30]} a4 {[%emt 0:00:47]} 60. bxa4 {[%emt 0:01:27]} Qb2 {[%emt 0:00:01]} 61. Ba5 {[%emt 0:00:12]} Qb8 {[%emt 0:00:48]} 62. Ne5 {[%emt 0:01:19]} Qh8 {[%emt 0:00:01]} 63. Bd2 {[%emt 0:01:47]} Qh5 {[%emt 0:00:27]} 64. Nf3 {[%emt 0:00:30]} Qh8 {[%emt 0:01:56]} 65. Qb1 {[%emt 0:00:05]} Qh5 {[%emt 0:00:04]} 66. Kf2 {[%emt 0:00:29]} Qh8 {[%emt 0:00:47]} 67. a5 {[%emt 0:00:30]} Qa8 {[%emt 0:00:43]} 68. Qb6 {[%emt 0:00:04]} Be6 {[%emt 0:00:12]} 69. a6 {[%emt 0:00:30]} Bc8 {[%emt 0:00:00]} 70. a7 {[%emt 0:00:00]} Qb7 {[%emt 0:00:00]} 71. Qd8 {[%emt 0:00:12]} 1-0

[Event "Turkish Second League 2019"]
[Site "Konya"]
[Date "2019.07.28"]
[Round "9"]
[White "Baltag, Iulian"]
[Black "Bashirli, Nail"]
[Result "1/2-1/2"]
[ECO "B52"]
[WhiteElo "2398"]
[BlackElo "2367"]
[Annotator "NA"]
[PlyCount "99"]
[EventDate "2019.07.22"]
[EventType "team-tourn"]
[EventCountry "TUR"]
[SourceTitle "playchess.com"]
[Source "ChessBase"]
[SourceQuality "1"]
[TimeControl "5400+30"]

1. e4 {[%emt 0:00:30]} c5 {[%emt 0:01:30]} 2. Nf3 {[%emt 0:00:30]} d6 {[%emt 0:00:00]} 3. Bb5+ {[%emt 0:00:00]} Bd7 {[%emt 0:00:00]} 4. Bxd7+ {[%emt 0:00:00]} Nxd7 {[%emt 0:00:30]} 5. O-O {[%emt 0:00:00]} Ngf6 {[%emt 0:00:30]} 6. Re1 {[%emt 0:00:00]} g6 {[%emt 0:01:30]} 7. c3 {[%emt 0:01:30]} Bg7 {[%emt 0:01:30]} 8. d4 {[%emt 0:00:30]} O-O {[%emt 0:00:00]} 9. h3 {[%emt 0:03:30]} e6 {[%emt 0:13:00]} 10. e5 {[%emt 0:02:30]} Nd5 {[%emt 0:04:30]} 11. c4 {[%emt 0:18:30]} Nb4 {[%emt 0:24:30]} 12. Bg5 {[%emt 0:28:30]} Qb6 {[%emt 0:01:30]} 13. Be7 {[%emt 0:03:30]} cxd4 {[%emt 0:00:30]} 14. Bxf8 {[%emt 0:02:30]} Rxf8 {[%emt 0:00:30]} 15. a3 {[%emt 0:02:30]} Nc6 {[%emt 0:20:30]} 16. exd6 {[%emt 0:00:30]} Qxb2 {[%emt 0:00:30]} 17. Nbd2 {[%emt 0:00:30]} Nc5 {[%emt 0:00:30]} 18. Ne4 {[%emt 0:05:30]} Nxe4 {[%emt 0:03:30]} 19. Rxe4 {[%emt 0:00:30]} Rd8 {[%emt 0:00:00]} 20. c5 {[%emt 0:07:30]} h6 {[%emt 0:05:24]} 21. Qc1 {[%emt 0:07:26]} Qxc1+ {[%emt 0:02:37]} 22. Rxc1 {[%emt 0:00:10]} e5 {[%emt 0:00:00]} 23. Rb1 {[%emt 0:01:34]} Rd7 {[%emt 0:02:10]} 24. Re2 {[%emt 0:00:33]} f5 {[%emt 0:01:30]} 25. Reb2 {[%emt 0:02:13]} Nd8 {[%emt 0:01:15]} 26. Rb4 {[%emt 0:02:39]} d3 {[%emt 0:02:06]} 27. g4 {[%emt 0:00:53]} Kf7 {[%emt 0:01:10]} 28. Kf1 {[%emt 0:00:55]} e4 {[%emt 0:01:58]} 29. Nh4 {[%emt 0:01:56]} Bf6 {[%emt 0:02:22]} 30. Ng2 {[%emt 0:01:09]} Bc3 {[%emt 0:00:38]} 31. Rc4 {[%emt 0:00:39]} Be5 {[%emt 0:00:34]} 32. gxf5 {[%emt 0:00:14]} gxf5 {[%emt 0:00:05]} 33. f3 {[%emt 0:00:18]} Ke6 {[%emt 0:01:22]} 34. fxe4 {[%emt 0:00:51]} fxe4 {[%emt 0:00:05]} 35. Ne3 {[%emt 0:02:34]} Rf7+ {[%emt 0:01:27]} 36. Kg2 {[%emt 0:00:02]} Rg7+ {[%emt 0:01:43]} 37. Kh1 {[%emt 0:00:14]} Rg3 {[%emt 0:02:24]} 38. Rxe4 {[%emt 0:00:30]} Rxh3+ {[%emt 0:00:00]} 39. Kg2 {[%emt 0:00:00]} Rh2+ {[%emt 0:00:00]} 40. Kf3 {[%emt 0:00:33]} Nf7 {[%emt 0:02:02]} 41. Rg4 {[%emt 0:02:45]} Ng5+ {[%emt 0:02:55]} 42. Rxg5 {[%emt 0:00:30]} hxg5 {[%emt 0:00:00]} 43. Rxb7 {[%emt 0:00:12]} Bf6 {[%emt 0:02:05]} 44. Rb1 {[%emt 0:02:16]} Bd4 {[%emt 0:00:28]} 45. c6 {[%emt 0:00:44]} Bxe3 {[%emt 0:00:35]} 46. c7 {[%emt 0:00:25]} Rh8 {[%emt 0:00:25]} 47. Rb8 {[%emt 0:01:03]} d2 {[%emt 0:00:50]} 48. Ke2 {[%emt 0:00:06]} Kxd6 {[%emt 0:00:15]} 49. Rxh8 {[%emt 0:01:43]} Kxc7 {[%emt 0:00:30]} 50. Rh6 {[%emt 0:00:00]} 1/2-1/2

[Event "Turkish Second League 2019"]
[Site "Konya"]
[Date "2019.07.28"]
[Round "9"]
[White "Isik, Alparslan"]
[Black "Kartal, Koray"]
[Result "1-0"]
[ECO "E05"]
[WhiteElo "2293"]
[BlackElo "2002"]
[Annotator "NA"]
[PlyCount "144"]
[EventDate "2019.07.22"]
[EventType "team-tourn"]
[EventCountry "TUR"]
[SourceTitle "playchess.com"]
[Source "ChessBase"]
[SourceQuality "1"]
[TimeControl "5400+30"]

1. Nf3 {[%emt 0:03:30]} Nf6 {[%emt 0:00:30]} 2. c4 {[%emt 0:00:00]} e6 {[%emt 0:00:30]} 3. g3 {[%emt 0:00:00]} d5 {[%emt 0:00:00]} 4. d4 {[%emt 0:00:30]} Be7 {[%emt 0:00:00]} 5. Bg2 {[%emt 0:00:00]} O-O {[%emt 0:00:30]} 6. O-O {[%emt 0:00:00]} dxc4 {[%emt 0:00:30]} 7. Qc2 {[%emt 0:00:30]} a6 {[%emt 0:00:00]} 8. a4 {[%emt 0:00:00]} Bd7 {[%emt 0:00:00]} 9. Rd1 {[%emt 0:00:00]} Bc6 {[%emt 0:01:30]} 10. Nc3 {[%emt 0:00:00]} Bxf3 {[%emt 0:08:30]} 11. Bxf3 {[%emt 0:04:00]} c6 {[%emt 0:00:00]} 12. a5 {[%emt 0:04:30]} Bb4 {[%emt 0:07:00]} 13. Qa4 {[%emt 0:01:30]} Qe7 {[%emt 0:01:30]} 14. e4 {[%emt 0:13:30]} Rd8 {[%emt 0:04:30]} 15. Bg5 {[%emt 0:12:30]} h6 {[%emt 0:00:30]} 16. Bxf6 {[%emt 0:01:30]} gxf6 {[%emt 0:00:00]} 17. d5 {[%emt 0:03:30]} Nd7 {[%emt 0:03:00]} 18. Na2 {[%emt 0:04:30]} Bd6 {[%emt 0:05:30]} 19. Qxc4 {[%emt 0:02:30]} Ne5 {[%emt 0:03:30]} 20. Qe2 {[%emt 0:00:30]} Bc7 {[%emt 0:02:30]} 21. Nc3 {[%emt 0:01:30]} Nxf3+ {[%emt 0:08:30]} 22. Qxf3 {[%emt 0:00:30]} Be5 {[%emt 0:05:30]} 23. Rd2 {[%emt 0:05:30]} Bxc3 {[%emt 0:04:30]} 24. bxc3 {[%emt 0:00:30]} cxd5 {[%emt 0:00:30]} 25. exd5 {[%emt 0:00:30]} Rxd5 {[%emt 0:01:30]} 26. Rxd5 {[%emt 0:02:30]} exd5 {[%emt 0:00:00]} 27. Qxd5 {[%emt 0:08:30]} Rd8 {[%emt 0:02:00]} 28. Qh5 {[%emt 0:00:00]} Qe5 {[%emt 0:18:30]} 29. Qxh6 {[%emt 0:02:00]} Qxc3 {[%emt 0:00:30]} 30. Rc1 {[%emt 0:01:30]} Qf3 {[%emt 0:00:30]} 31. h4 {[%emt 0:03:30]} Rd1+ {[%emt 0:00:30]} 32. Rxd1 {[%emt 0:00:30]} Qxd1+ {[%emt 0:00:30]} 33. Kh2 {[%emt 0:00:00]} Qe1 {[%emt 0:02:30]} 34. Qxf6 {[%emt 0:00:00]} Qxa5 {[%emt 0:00:30]} 35. g4 {[%emt 0:00:30]} Qc7+ {[%emt 0:00:30]} 36. Kh3 {[%emt 0:00:30]} Qc6 {[%emt 0:00:30]} 37. Qg5+ {[%emt 0:04:30]} Kf8 {[%emt 0:01:30]} 38. Qd8+ {[%emt 0:05:02]} Kg7 {[%emt 0:00:00]} 39. Qg5+ {[%emt 0:01:58]} Kf8 {[%emt 0:00:00]} 40. Kh2 {[%emt 0:03:54]} Qd6+ {[%emt 0:06:04]} 41. Kg2 {[%emt 0:01:28]} Qc6+ {[%emt 0:00:27]} 42. f3 {[%emt 0:02:50]} Qc2+ {[%emt 0:01:26]} 43. Kg3 {[%emt 0:00:57]} Qd1 {[%emt 0:01:28]} 44. Qe3 {[%emt 0:01:37]} Qd6+ {[%emt 0:03:01]} 45. Kh3 {[%emt 0:00:00]} Qe6 {[%emt 0:02:32]} 46. Qc5+ {[%emt 0:01:02]} Qe7 {[%emt 0:00:26]} 47. Qc3 {[%emt 0:01:37]} f6 {[%emt 0:03:36]} 48. f4 {[%emt 0:03:06]} Kf7 {[%emt 0:02:50]} 49. h5 {[%emt 0:01:46]} Qe4 {[%emt 0:00:35]} 50. Kg3 {[%emt 0:01:08]} b5 {[%emt 0:02:02]} 51. g5 {[%emt 0:00:07]} fxg5 {[%emt 0:00:22]} 52. fxg5 {[%emt 0:00:16]} b4 {[%emt 0:01:56]} 53. g6+ {[%emt 0:02:06]} Kg8 {[%emt 0:00:32]} 54. Qb3+ {[%emt 0:02:04]} Kg7 {[%emt 0:00:14]} 55. Qf7+ {[%emt 0:00:52]} Kh6 {[%emt 0:00:01]} 56. Kf2 {[%emt 0:00:03]} Qd4+ {[%emt 0:00:36]} 57. Kf3 {[%emt 0:00:17]} Qd3+ {[%emt 0:00:20]} 58. Kf4 {[%emt 0:00:24]} Qd4+ {[%emt 0:01:48]} 59. Kf5 {[%emt 0:00:05]} Qd3+ {[%emt 0:00:00]} 60. Ke6 {[%emt 0:00:50]} Qe4+ {[%emt 0:00:13]} 61. Kd7 {[%emt 0:00:34]} Qb7+ {[%emt 0:00:55]} 62. Kd8 {[%emt 0:00:36]} Qb8+ {[%emt 0:00:11]} 63. Ke7 {[%emt 0:00:00]} Qc7+ {[%emt 0:00:19]} 64. Ke6 {[%emt 0:00:38]} Qc6+ {[%emt 0:00:38]} 65. Ke5 {[%emt 0:00:03]} Qc5+ {[%emt 0:00:32]} 66. Ke4 {[%emt 0:00:04]} Qc2+ {[%emt 0:00:05]} 67. Kd5 {[%emt 0:00:17]} Qb3+ {[%emt 0:00:41]} 68. Kd6 {[%emt 0:00:10]} Qd3+ {[%emt 0:00:47]} 69. Kc7 {[%emt 0:00:19]} Qc2+ {[%emt 0:00:43]} 70. Kb6 {[%emt 0:00:26]} b3 {[%emt 0:00:35]} 71. Qf8+ {[%emt 0:02:08]} Kxh5 {[%emt 0:01:03]} 72. g7 {[%emt 0:00:01]} b2 {[%emt 0:00:32]} 1-0

[Event "Turkish Second League 2019"]
[Site "Konya"]
[Date "2019.07.28"]
[Round "9"]
[White "Lomsadze, Davit"]
[Black "Yilmazyerli, Mert"]
[Result "1/2-1/2"]
[ECO "A37"]
[WhiteElo "2292"]
[BlackElo "2420"]
[Annotator "NA"]
[PlyCount "60"]
[EventDate "2019.07.22"]
[EventType "team-tourn"]
[EventCountry "TUR"]
[SourceTitle "playchess.com"]
[Source "ChessBase"]
[SourceQuality "1"]
[TimeControl "5400+30"]

1. Nf3 {[%emt 0:00:30]} c5 {[%emt 0:05:30]} 2. g3 {[%emt 0:00:00]} Nc6 {[%emt 0:00:30]} 3. Bg2 {[%emt 0:00:00]} g6 {[%emt 0:00:30]} 4. O-O {[%emt 0:00:00]} Bg7 {[%emt 0:00:00]} 5. c4 {[%emt 0:00:00]} e6 {[%emt 0:03:00]} 6. Nc3 {[%emt 0:00:30]} Nge7 {[%emt 0:00:30]} 7. Rb1 {[%emt 0:00:00]} O-O {[%emt 0:00:30]} 8. a3 {[%emt 0:00:00]} d5 {[%emt 0:01:30]} 9. d3 {[%emt 0:00:30]} b6 {[%emt 0:04:30]} 10. Bd2 {[%emt 0:00:30]} Bb7 {[%emt 0:01:30]} 11. b4 {[%emt 0:01:30]} cxb4 {[%emt 0:15:30]} 12. axb4 {[%emt 0:02:30]} dxc4 {[%emt 0:00:30]} 13. dxc4 {[%emt 0:00:00]} Rc8 {[%emt 0:00:30]} 14. c5 {[%emt 0:04:00]} bxc5 {[%emt 0:10:30]} 15. bxc5 {[%emt 0:01:30]} Na5 {[%emt 0:00:30]} 16. Bg5 {[%emt 0:17:30]} f6 {[%emt 0:10:30]} 17. Bd2 {[%emt 0:07:30]} Ba8 {[%emt 0:22:30]} 18. Nb5 {[%emt 0:14:30]} Rxc5 {[%emt 0:00:34]} 19. Nbd4 {[%emt 0:00:30]} Bd5 {[%emt 0:03:53]} 20. Bb4 {[%emt 0:00:30]} Rc8 {[%emt 0:04:29]} 21. Qa4 {[%emt 0:02:30]} Nac6 {[%emt 0:01:19]} 22. Nxc6 {[%emt 0:00:30]} Bxc6 {[%emt 0:00:07]} 23. Qxa7 {[%emt 0:01:30]} Rf7 {[%emt 0:00:02]} 24. Ba5 {[%emt 0:03:30]} Qe8 {[%emt 0:00:36]} 25. Rfc1 {[%emt 0:01:30]} Be4 {[%emt 0:00:44]} 26. Ra1 {[%emt 0:03:30]} Nf5 {[%emt 0:04:18]} 27. Rxc8 {[%emt 0:03:30]} Qxc8 {[%emt 0:00:05]} 28. Qb6 {[%emt 0:00:30]} Rb7 {[%emt 0:00:38]} 29. Qd8+ {[%emt 0:00:30]} Qxd8 {[%emt 0:00:30]} 30. Bxd8 {[%emt 0:00:00]} Rb2 {[%emt 0:00:21]} 1/2-1/2

[Event "Turkish Second League 2019"]
[Site "Konya"]
[Date "2019.07.28"]
[Round "9"]
[White "Buyukasik, Diyap"]
[Black "Ozates, Tuna"]
[Result "1/2-1/2"]
[ECO "A37"]
[WhiteElo "2268"]
[BlackElo "2218"]
[Annotator "NA"]
[PlyCount "87"]
[EventDate "2019.07.22"]
[EventType "team-tourn"]
[EventCountry "TUR"]
[SourceTitle "playchess.com"]
[Source "ChessBase"]
[SourceQuality "1"]
[TimeControl "5400+30"]

1. Nf3 {[%emt 0:00:30]} c5 {[%emt 0:00:30]} 2. c4 {[%emt 0:01:30]} Nc6 {[%emt 0:00:00]} 3. Nc3 {[%emt 0:00:30]} e5 {[%emt 0:00:00]} 4. g3 {[%emt 0:00:30]} g6 {[%emt 0:00:30]} 5. Bg2 {[%emt 0:00:30]} Bg7 {[%emt 0:00:30]} 6. O-O {[%emt 0:00:30]} Nge7 {[%emt 0:00:00]} 7. d3 {[%emt 0:01:30]} O-O {[%emt 0:00:00]} 8. a3 {[%emt 0:02:30]} a5 {[%emt 0:00:30]} 9. Ne1 {[%emt 0:02:30]} d6 {[%emt 0:00:30]} 10. Nc2 {[%emt 0:01:30]} Be6 {[%emt 0:00:30]} 11. Rb1 {[%emt 0:01:30]} d5 {[%emt 0:00:30]} 12. cxd5 {[%emt 0:03:30]} Nxd5 {[%emt 0:00:00]} 13. Ne3 {[%emt 0:00:30]} Nde7 {[%emt 0:00:00]} 14. Bd2 {[%emt 0:07:30]} f5 {[%emt 0:32:30]} 15. Nc4 {[%emt 0:14:30]} a4 {[%emt 0:06:30]} 16. Be3 {[%emt 0:03:30]} b6 {[%emt 0:03:30]} 17. Bg5 {[%emt 0:04:30]} e4 {[%emt 0:01:30]} 18. Nd2 {[%emt 0:05:30]} Bf6 {[%emt 0:22:30]} 19. Bxf6 {[%emt 0:02:30]} Rxf6 {[%emt 0:00:00]} 20. dxe4 {[%emt 0:00:00]} f4 {[%emt 0:00:00]} 21. e5 {[%emt 0:07:00]} Rf8 {[%emt 0:02:30]} 22. gxf4 {[%emt 0:10:30]} Rxf4 {[%emt 0:00:30]} 23. e3 {[%emt 0:00:30]} Rf5 {[%emt 0:02:30]} 24. f4 {[%emt 0:02:30]} Rf8 {[%emt 0:11:35]} 25. Qe2 {[%emt 0:03:30]} Qc8 {[%emt 0:05:42]} 26. Nde4 {[%emt 0:05:12]} Qa6 {[%emt 0:04:13]} 27. Qe1 {[%emt 0:05:02]} Rad8 {[%emt 0:03:00]} 28. Qh4 {[%emt 0:04:26]} Kg7 {[%emt 0:00:52]} 29. Nf6 {[%emt 0:03:22]} h6 {[%emt 0:00:37]} 30. Rbd1 {[%emt 0:04:28]} Nf5 {[%emt 0:01:04]} 31. Qf2 {[%emt 0:00:30]} b5 {[%emt 0:00:21]} 32. Ncd5 {[%emt 0:01:23]} Bxd5 {[%emt 0:00:41]} 33. Bxd5 {[%emt 0:01:28]} Nce7 {[%emt 0:00:04]} 34. e4 {[%emt 0:00:20]} Nd4 {[%emt 0:00:41]} 35. Rc1 {[%emt 0:00:24]} Nxd5 {[%emt 0:01:34]} 36. exd5 {[%emt 0:00:28]} Rxf6 {[%emt 0:00:31]} 37. exf6+ {[%emt 0:00:38]} Qxf6 {[%emt 0:00:30]} 38. Rxc5 {[%emt 0:00:30]} Re8 {[%emt 0:00:00]} 39. Rd1 {[%emt 0:00:48]} Re4 {[%emt 0:00:22]} 40. Rc7+ {[%emt 0:00:23]} Kh8 {[%emt 0:00:34]} 41. Rc8+ {[%emt 0:00:02]} Kh7 {[%emt 0:00:00]} 42. Rc7+ {[%emt 0:00:33]} Kh8 {[%emt 0:00:00]} 43. Rc8+ {[%emt 0:01:19]} Kh7 {[%emt 0:00:00]} 44. Rc7+ {[%emt 0:00:09]} 1/2-1/2

[Event "Turkish Second League 2019"]
[Site "Konya"]
[Date "2019.07.28"]
[Round "9"]
[White "Ozsakallioglu, Okan"]
[Black "Karaokcu, Erkin"]
[Result "1/2-1/2"]
[ECO "B01"]
[WhiteElo "2243"]
[BlackElo "2256"]
[Annotator "NA"]
[PlyCount "107"]
[EventDate "2019.07.22"]
[EventType "team-tourn"]
[EventCountry "TUR"]
[SourceTitle "playchess.com"]
[Source "ChessBase"]
[SourceQuality "1"]
[TimeControl "5400+30"]

1. e4 {[%emt 0:00:30]} d5 {[%emt 0:00:30]} 2. exd5 {[%emt 0:00:30]} Qxd5 {[%emt 0:00:30]} 3. Nc3 {[%emt 0:00:00]} Qd6 {[%emt 0:00:00]} 4. d4 {[%emt 0:02:00]} Nf6 {[%emt 0:00:00]} 5. Nf3 {[%emt 0:01:30]} c6 {[%emt 0:01:30]} 6. g3 {[%emt 0:00:30]} Bf5 {[%emt 0:01:30]} 7. Bg2 {[%emt 0:00:30]} e6 {[%emt 0:00:30]} 8. O-O {[%emt 0:03:30]} Be7 {[%emt 0:00:30]} 9. h3 {[%emt 0:00:30]} h6 {[%emt 0:00:30]} 10. a3 {[%emt 0:01:30]} O-O {[%emt 0:01:30]} 11. Ne5 {[%emt 0:00:30]} Qd8 {[%emt 0:00:30]} 12. g4 {[%emt 0:00:30]} Bh7 {[%emt 0:00:30]} 13. f4 {[%emt 0:00:00]} Nbd7 {[%emt 0:00:30]} 14. Qe2 {[%emt 0:10:00]} Nd5 {[%emt 0:09:30]} 15. Ne4 {[%emt 0:05:30]} f5 {[%emt 0:05:30]} 16. Nc3 {[%emt 0:17:30]} Nxe5 {[%emt 0:06:30]} 17. Qxe5 {[%emt 0:01:30]} Qd6 {[%emt 0:03:30]} 18. Qe2 {[%emt 0:04:30]} Bf6 {[%emt 0:13:30]} 19. Nxd5 {[%emt 0:01:30]} exd5 {[%emt 0:01:30]} 20. Qf2 {[%emt 0:00:30]} Rae8 {[%emt 0:04:30]} 21. g5 {[%emt 0:00:30]} Bd8 {[%emt 0:00:30]} 22. Bd2 {[%emt 0:01:30]} a5 {[%emt 0:00:30]} 23. Rae1 {[%emt 0:00:30]} hxg5 {[%emt 0:02:30]} 24. Rxe8 {[%emt 0:00:30]} Rxe8 {[%emt 0:00:30]} 25. fxg5 {[%emt 0:00:00]} Bc7 {[%emt 0:00:00]} 26. Bf4 {[%emt 0:01:00]} Qxf4 {[%emt 0:00:00]} 27. Qxf4 {[%emt 0:00:00]} Bxf4 {[%emt 0:00:30]} 28. Rxf4 {[%emt 0:00:00]} Bg6 {[%emt 0:24:30]} 29. Kf2 {[%emt 0:00:00]} Bh5 {[%emt 0:02:30]} 30. Bf1 {[%emt 0:04:00]} g6 {[%emt 0:01:55]} 31. Bd3 {[%emt 0:00:30]} Kf7 {[%emt 0:00:15]} 32. Rh4 {[%emt 0:00:30]} Kg7 {[%emt 0:01:03]} 33. Rf4 {[%emt 0:00:30]} Kf7 {[%emt 0:00:03]} 34. c4 {[%emt 0:09:30]} Ke6 {[%emt 0:01:51]} 35. c5 {[%emt 0:00:30]} Rb8 {[%emt 0:03:15]} 36. b4 {[%emt 0:02:30]} axb4 {[%emt 0:00:56]} 37. axb4 {[%emt 0:00:30]} b5 {[%emt 0:00:00]} 38. Ke3 {[%emt 0:01:30]} Ra8 {[%emt 0:00:24]} 39. Rf1 {[%emt 0:00:30]} Ra4 {[%emt 0:01:52]} 40. Rb1 {[%emt 0:01:30]} Ra3 {[%emt 0:00:08]} 41. Re1 {[%emt 0:03:30]} Kd7 {[%emt 0:00:33]} 42. Rf1 {[%emt 0:00:30]} Rb3 {[%emt 0:02:04]} 43. Rb1 {[%emt 0:00:30]} f4+ {[%emt 0:02:52]} 44. Kd2 {[%emt 0:00:30]} Ra3 {[%emt 0:00:00]} 45. Rf1 {[%emt 0:00:00]} f3 {[%emt 0:00:00]} 46. Bc2 {[%emt 0:00:00]} Ra8 {[%emt 0:01:49]} 47. Bd1 {[%emt 0:01:30]} Ra1 {[%emt 0:00:34]} 48. Rf2 {[%emt 0:00:30]} Ra3 {[%emt 0:02:57]} 49. Rf1 {[%emt 0:00:30]} Ra1 {[%emt 0:01:57]} 50. Rf2 {[%emt 0:00:30]} Rb1 {[%emt 0:01:14]} 51. Bxf3 {[%emt 0:00:30]} Rxb4 {[%emt 0:00:30]} 52. Kd3 {[%emt 0:00:30]} Rxd4+ {[%emt 0:00:30]} 53. Kc3 {[%emt 0:00:30]} Rc4+ {[%emt 0:00:30]} 54. Kd3 {[%emt 0:00:30]} 1/2-1/2